fUST/lending_fUST_20250305
["ID","MTS","AMOUNT","RATE_DAILY","PERIOD"]
[355406188,1741110647152,-500.0,0.00043835,120]
[355406189,1741110647162,-500.0,0.00043835,120]
[355406190,1741110647172,-500.0,0.00043835,120]
[355406191,1741110647181,-539.19019435,0.00043835,120]
[355406192,1741110647191,-699.16,0.00043835,120]
[355406193,1741110647200,-500.0,0.00043835,120]
[355406194,1741110647210,-500.0,0.00043835,120]
[355406195,1741110647219,-500.0,0.00043835,120]
[355406196,1741110647229,-500.0,0.00043835,120]
[355406197,1741110647239,-500.0,0.00043835,120]
[355406198,1741110647249,-500.0,0.00043835,120]
[355406199,1741110647258,-500.0,0.00043835,120]
[355406200,1741110647269,-500.0,0.00043835,120]
[355406201,1741110647279,-520.35918989,0.00043835,120]
[355406202,1741110647289,-224.849242,0.00043835,120]
[355406203,1741110647299,-500.0,0.00043835,120]
[355406204,1741110647308,-2001.54,0.00043835,120]
[355406205,1741110647318,-500.0,0.00043835,120]
[355406206,1741110647328,-1000.0,0.00043835,120]
[355406207,1741110647339,-500.0,0.00043835,120]
[355406208,1741110647349,-505.93558686,0.00043835,120]
[355406209,1741110647359,-500.0,0.00043835,120]
[355406210,1741110647368,-500.0,0.00043835,120]
[355406211,1741110647377,-500.0,0.00043835,120]
[355406212,1741110647387,-500.0,0.00043835,120]
[355406213,1741110647397,-500.0,0.00043835,120]
[355406214,1741110647406,-500.0,0.00043835,120]
[355406215,1741110647416,-500.0,0.00043835,120]
[355406216,1741110647426,-500.0,0.00043835,120]
[355406217,1741110647436,-500.0,0.00043835,120]
[355406218,1741110647446,-500.0,0.00043835,120]
[355406219,1741110647457,-500.0,0.00043835,120]
[355406220,1741110647467,-500.0,0.00043835,120]
[355406221,1741110647477,-500.0,0.00043835,120]
[355406222,1741110647488,-500.0,0.00043835,120]
[355406223,1741110647497,-1777.31,0.00043835,6]
[355406224,1741110647507,-500.0,0.00043835,120]
[355406225,1741110647516,-500.0,0.00043835,120]
[355406226,1741110647526,-500.0,0.00043835,120]
[355406227,1741110647535,-195.49,0.00043835,120]
[355406228,1741110647545,-500.0,0.00043835,120]
[355406229,1741110647555,-500.0,0.00043835,120]
[355406230,1741110647564,-1244.17,0.00043835,120]
[355406231,1741110647574,-500.0,0.00043835,120]
[355406232,1741110647583,-502.64324863,0.00043835,120]
[355406233,1741110647592,-500.0,0.00043835,120]
[355406234,1741110647602,-500.0,0.00043835,120]
[355406235,1741110647611,-500.0,0.00043835,120]
[355406236,1741110647620,-500.0,0.00043835,120]
[355406237,1741110647629,-500.0,0.00043835,120]
[355406238,1741110647638,-500.0,0.00043835,120]
[355406239,1741110647647,-500.0,0.00043835,120]
[355406240,1741110647657,-500.0,0.00043835,120]
[355406241,1741110647666,-870.17,0.00043835,120]
[355406242,1741110647676,-500.0,0.00043835,120]
[355406243,1741110647685,-500.0,0.00043835,120]
[355406244,1741110647695,-500.0,0.00043835,120]
[355406245,1741110647708,-500.0,0.00043835,120]
[355406246,1741110647717,-500.0,0.00043835,120]
[355406247,1741110647726,-500.0,0.00043835,120]
[355406248,1741110647739,-500.0,0.00043835,120]
[355406249,1741110647750,-500.0,0.00043835,120]
[355406250,1741110647759,-500.0,0.00043835,120]
[355406251,1741110647770,-774.02,0.00043835,120]
[355406252,1741110647783,-500.0,0.00043835,120]
[355406253,1741110647792,-500.0,0.00043835,120]
[355406254,1741110647802,-500.0,0.00043835,120]
[355406255,1741110647811,-812.48,0.00043835,120]
[355406256,1741110647821,-500.0,0.00043835,120]
[355406257,1741110647831,-500.0,0.00043835,120]
[355406258,1741110647840,-503.01725698,0.00043835,120]
[355406259,1741110647849,-500.0,0.00043835,120]
[355406260,1741110647859,-500.0,0.00043835,120]
[355406261,1741110647868,-500.0,0.00043835,120]
[355406262,1741110647877,-410.52254853,0.00043835,120]
[355406263,1741110647886,-500.0,0.00043835,120]
[355406264,1741110647896,-500.0,0.00043835,120]
[355406265,1741110647906,-500.0,0.00043835,120]
[355406266,1741110647915,-758.2,0.00043835,120]
[355406267,1741110647925,-500.0,0.00043835,120]
[355406268,1741110647934,-500.0,0.00043835,120]
[355406269,1741110647943,-500.0,0.00043835,120]
[355406270,1741110647952,-1762.09,0.00043835,120]
[355406271,1741110647962,-500.0,0.00043835,120]
[355406272,1741110647971,-1040.5,0.00043835,120]
[355406273,1741110647980,-500.0,0.00043835,120]
[355406274,1741110647992,-500.0,0.00043835,120]
[355406275,1741110648001,-1617.9,0.00043835,120]
[355406276,1741110648011,-500.0,0.00043835,120]
[355406277,1741110648020,-532.7,0.00043835,120]
[355406278,1741110648029,-500.0,0.00043835,120]
[355406279,1741110648038,-500.0,0.00043835,120]
[355406280,1741110648048,-31131.63,0.00043835,7]
[355406281,1741110648059,-500.0,0.00043835,120]
[355406282,1741110648069,-500.0,0.00043835,120]
[355406283,1741110648079,-500.0,0.00043835,120]
[355406284,1741110648088,-500.0,0.00043835,120]
[355406285,1741110648101,-500.0,0.00043835,120]
[355406286,1741110648111,-720.46,0.00043835,120]
[355406287,1741110648124,-500.0,0.00043835,120]
[355406288,1741110648137,-500.0,0.00043835,120]
[355406289,1741110648148,-500.0,0.00043835,120]
[355406290,1741110648158,-500.0,0.00043835,120]
[355406291,1741110648168,-500.0,0.00043835,120]
[355406292,1741110648178,-311.37,0.00043835,120]
[355406293,1741110648188,-500.0,0.00043835,120]
[355406294,1741110648198,-1306.64,0.00043835,30]
[355406295,1741110648207,-500.0,0.00043835,120]
[355406296,1741110648218,-511.54275996,0.00043835,120]
[355406297,1741110648229,-500.0,0.00043835,2]
[355406298,1741110648240,-151.0,0.00043835,120]
[355406299,1741110648251,-500.0,0.00043835,120]
[355406300,1741110648262,-1000.0,0.00043836,30]
[355406301,1741110648272,-1000.0,0.00043836,2]
[355406302,1741110648288,-753.76469303,0.00043836,60]
[355406303,1741110648297,-588.22878215,0.00043836,31]
[355406304,1741110648307,-4844.11986915,0.00043913,2]
[355406305,1741110648316,-4844.11986915,0.00043915,2]
[355406306,1741110648326,-8338.32003075,0.00043916,2]
[355406307,1741110648335,-1136.64054549,0.00043921,92]
[355406308,1741110648345,-4844.11986915,0.00043922,2]
[355406309,1741110648355,-5617.97183793,0.00043924,2]
[355406310,1741110648364,-8338.32003075,0.0004393,2]
[355406311,1741110648374,-2321.55590632,0.00043934,2]
[355406312,1741110648384,-4844.11986915,0.0004394,2]
[355406313,1741110648394,-2321.55590632,0.0004394,2]
[355406314,1741110648403,-5617.97183793,0.00043941,2]
[355406315,1741110648412,-2321.55590632,0.00043966,2]
[355406316,1741110648422,-8338.32003075,0.0004397,2]
[355406317,1741110648431,-5617.97183793,0.00043973,2]
[355406318,1741110648440,-2321.55590632,0.00043992,2]
[355406319,1741110648450,-8338.32003075,0.00043998,2]
[355406320,1741110648460,-5617.97183793,0.00043998,2]
[355406321,1741110648469,-1855.27392099,0.00044,2]
[355406322,1741110648479,-32319.22371945,0.00044,14]
[355406323,1741110648490,-151.0,0.00044,120]
[355406324,1741110648499,-476.116251,0.00044,120]
[355406325,1741110648509,-476.116251,0.00044,120]
[355406326,1741110648519,-1136.64054549,0.00044021,92]
[355406327,1741110648529,-150.0,0.000441,30]
[355406328,1741110648538,-150.0,0.00044109,2]
[355406329,1741110648548,-500.0,0.00044109,120]
[355406330,1741110648557,-500.0,0.00044109,120]
[355406331,1741110648568,-643.21,0.00044109,120]
[355406332,1741110648577,-500.0,0.00044109,120]
[355406333,1741110648587,-500.0,0.00044109,120]
[355406334,1741110648597,-1136.64054549,0.00044121,93]
[355406335,1741110648607,-500.0,0.00044124,30]
[355406336,1741110648616,-2200.0,0.00044152,14]
[355406337,1741110648626,-686.383,0.00044152,30]
[355406338,1741110648635,-500.0,0.00044153,30]
[355406339,1741110648645,-500.0,0.00044189,30]
[355406340,1741110648654,-1136.64054549,0.00044221,90]
[355406341,1741110648664,-500.0,0.00044253,30]
[355406342,1741110648674,-156.508724,0.00044253,4]
[355406343,1741110648683,-151.13434567,0.00044279,120]
[355406344,1741110648693,-1136.64054549,0.00044321,96]
[355406345,1741110648703,-150.129,0.00044325,120]
[355406346,1741110648715,-200.0,0.00044383,2]
[355406347,1741110648725,-567.21173789,0.00044383,120]
[355406348,1741110648734,-213.27881998,0.00044383,120]
[355406349,1741110648744,-643.21,0.00044383,120]
[355406350,1741110648754,-500.0,0.00044383,120]
[355406351,1741110648878,-500.0,0.00044383,120]
[355406352,1741110648889,-535.46,0.00044383,120]
[355406353,1741110648899,-500.0,0.00044383,120]
[355406354,1741110648908,-274.01657288,0.00044383,120]
[355406355,1741110648918,-584.071771,0.00044383,120]
[355406356,1741110648928,-500.0,0.00044383,120]
[355406357,1741110648937,-500.0,0.00044383,120]
[355406358,1741110648947,-584.071771,0.00044383,120]
[355406359,1741110648957,-171.99,0.00044383,120]
[355406360,1741110648967,-500.0,0.00044383,120]
[355406361,1741110648976,-500.0,0.00044383,120]
[355406362,1741110648987,-500.0,0.00044383,120]
[355406363,1741110648998,-500.0,0.00044383,120]
[355406364,1741110649007,-500.0,0.00044383,120]
[355406365,1741110649017,-500.0,0.00044383,120]
[355406366,1741110649027,-500.0,0.00044383,120]
[355406367,1741110649036,-699.16,0.00044383,120]
[355406368,1741110649046,-500.0,0.00044383,120]
[355406369,1741110649056,-2001.54,0.00044383,120]
[355406370,1741110649065,-500.0,0.00044383,120]
[355406371,1741110649075,-1000.0,0.00044383,120]
[355406372,1741110649084,-500.0,0.00044383,120]
[355406373,1741110649094,-500.0,0.00044383,120]
[355406374,1741110649104,-500.0,0.00044383,120]
[355406375,1741110649113,-500.0,0.00044383,120]
[355406376,1741110649123,-500.0,0.00044383,120]
[355406377,1741110649132,-500.0,0.00044383,120]
[355406378,1741110649142,-500.0,0.00044383,120]
[355406379,1741110649152,-1777.31,0.00044383,6]
[355406380,1741110649161,-500.0,0.00044383,120]
[355406381,1741110649171,-1244.17,0.00044383,120]
[355406382,1741110649180,-500.0,0.00044383,120]
[355406383,1741110649191,-500.0,0.00044383,120]
[355406384,1741110649204,-500.0,0.00044383,120]
[355406385,1741110649215,-500.0,0.00044383,120]
[355406386,1741110649227,-500.0,0.00044383,120]
[355406387,1741110649243,-500.0,0.00044383,120]
[355406388,1741110649253,-870.17,0.00044383,120]
[355406389,1741110649263,-500.0,0.00044383,120]
[355406390,1741110649273,-500.0,0.00044383,120]
[355406391,1741110649283,-500.0,0.00044383,120]
[355406392,1741110649292,-500.0,0.00044383,120]
[355406393,1741110649302,-774.02,0.00044383,120]
[355406394,1741110649311,-566.38973854,0.00044383,120]
[355406395,1741110649321,-812.48,0.00044383,120]
[355406396,1741110649331,-500.0,0.00044383,120]
[355406397,1741110649341,-500.0,0.00044383,120]
[355406398,1741110649351,-500.0,0.00044383,120]
[355406399,1741110649361,-500.0,0.00044383,120]
[355406400,1741110649372,-500.0,0.00044383,120]
[355406401,1741110649382,-758.2,0.00044383,120]
[355406402,1741110649392,-500.0,0.00044383,120]
[355406403,1741110649401,-500.0,0.00044383,120]
[355406404,1741110649411,-1762.09,0.00044383,120]
[355406405,1741110649421,-1040.5,0.00044383,120]
[355406406,1741110649430,-500.0,0.00044383,120]
[355406407,1741110649440,-1617.9,0.00044383,120]
[355406408,1741110649451,-532.7,0.00044383,120]
[355406409,1741110649461,-500.0,0.00044383,120]
[355406410,1741110649471,-31131.63,0.00044383,7]
[355406411,1741110649480,-500.0,0.00044383,120]
[355406412,1741110649491,-500.0,0.00044383,120]
[355406413,1741110649500,-720.46,0.00044383,120]
[355406414,1741110649510,-500.0,0.00044383,120]
[355406415,1741110649519,-500.0,0.00044383,120]
[355406416,1741110649529,-500.0,0.00044383,120]
[355406417,1741110649542,-1306.64,0.00044383,30]
[355406418,1741110649553,-500.0,0.00044383,2]
[355406419,1741110649564,-500.0,0.00044383,120]
[355406420,1741110649574,-151.0,0.00044383,120]
[355406421,1741110649583,-572.02,0.000444,30]
[355406422,1741110649592,-13837.01,0.000444,30]
[355406423,1741110649602,-151.0,0.000444,120]
[355406424,1741110649611,-317.449408,0.000444,2]
[355406425,1741110649620,-317.449408,0.000444,2]
[355406426,1741110649629,-156.096007,0.000444,120]
[355406427,1741110649639,-156.096007,0.000444,120]
[355406428,1741110649648,-1136.64054549,0.00044421,95]
[355406429,1741110649657,-500.0,0.00044493,30]
[355406430,1741110649666,-69347.15407489,0.000445,2]
[355406431,1741110649684,-35352.84592511,0.000445,2]
[355406432,1741110649693,-907.96,0.000445,2]
[355406433,1741110649709,-637.35,0.000445,30]
[355406434,1741110649718,-151.0,0.000445,120]
[355406435,1741110649728,-151.0,0.000445,120]
[355406436,1741110649738,-441.735743,0.000445,14]
[355406437,1741110649749,-441.735743,0.000445,14]
[355406438,1741110649757,-151.0,0.000445,120]
[355406439,1741110649767,-151.0,0.000445,120]
[355406440,1741110649776,-207.51728,0.000445,120]
[355406441,1741110649786,-207.51728,0.000445,120]
[355406442,1741110649796,-192.192086,0.000445,120]
[355406443,1741110649805,-192.192086,0.000445,120]
[355406444,1741110649814,-151.0,0.000445,30]
[355406445,1741110649823,-151.0,0.000445,120]
[355406446,1741110649832,-151.0,0.000445,120]
[355406447,1741110649842,-151.0,0.000445,120]
[355406448,1741110649851,-151.0,0.000445,120]
[355406449,1741110649861,-151.0,0.000445,120]
[355406450,1741110649870,-476.116251,0.000445,120]
[355406451,1741110649879,-476.116251,0.000445,120]
[355406452,1741110649889,-154.4,0.000445,36]
[355406453,1741110649898,-154.4,0.000445,36]
[355406454,1741110649907,-154.4,0.000445,36]
[355406455,1741110649916,-154.4,0.000445,36]
[355406456,1741110649926,-154.4,0.000445,36]
[355406457,1741110649935,-154.4,0.000445,36]
[355406458,1741110649944,-154.4,0.000445,36]
[355406459,1741110649953,-154.4,0.000445,36]
[355406460,1741110649963,-1136.64054549,0.00044521,92]
[355406461,1741110649972,-500.0,0.0004457,30]
[355406462,1741110649982,-489.0,0.000446,23]
[355406463,1741110649992,-2000.0,0.00044617,8]
[355406464,1741110650002,-1136.64054549,0.00044621,96]
[355406465,1741110650011,-397.0,0.00044655,2]
[355406466,1741110650020,-397.0,0.00044655,2]
[355406467,1741110650029,-584.071771,0.00044655,120]
[355406468,1741110650039,-584.071771,0.00044655,120]
[355406469,1741110650048,-643.21,0.00044657,120]
[355406470,1741110650057,-500.0,0.00044657,120]
[355406471,1741110650067,-500.0,0.00044657,120]
[355406472,1741110650076,-1136.64054549,0.00044721,98]
[355406473,1741110650085,-151.13434567,0.000448,120]
[355406474,1741110650094,-1136.64054549,0.00044821,96]
[355406475,1741110650104,-8954.96417495,0.00044831,2]
[355406476,1741110650113,-965.68844186,0.00044835,2]
[355406477,1741110650122,-21484.7741161,0.000449,10]
[355406478,1741110650134,-128515.2258839,0.000449,10]
[355406479,1741110650143,-151.0,0.000449,120]
[355406480,1741110650152,-317.449408,0.000449,2]
[355406481,1741110650162,-317.449408,0.000449,2]
[355406482,1741110650171,-156.096007,0.000449,120]
[355406483,1741110650180,-156.096007,0.000449,120]
[355406484,1741110650190,-151.0,0.000449,30]
[355406485,1741110650199,-151.0,0.000449,120]
[355406486,1741110650209,-476.116251,0.000449,120]
[355406487,1741110650218,-476.116251,0.000449,120]
[355406488,1741110650228,-584.071771,0.000449,120]
[355406489,1741110650238,-584.071771,0.000449,120]
[355406490,1741110650247,-1136.64054549,0.00044921,93]
[355406491,1741110650257,-3111.43812024,0.00044931,40]
[355406492,1741110650267,-17920.23927263,0.00044931,40]
[355406493,1741110650276,-150.0,0.00044931,2]
[355406494,1741110650285,-151.0,0.00044931,120]
[355406495,1741110650294,-151.0,0.00044931,120]
[355406496,1741110650303,-441.735743,0.00044931,14]
[355406497,1741110650313,-441.735743,0.00044931,14]
[355406498,1741110650322,-151.0,0.00044931,120]
[355406499,1741110650331,-151.0,0.00044931,120]
[355406500,1741110650341,-207.51728,0.00044931,120]
[355406501,1741110650350,-207.51728,0.00044931,120]
[355406502,1741110650359,-192.192086,0.00044931,120]
[355406503,1741110650368,-192.192086,0.00044931,120]
[355406504,1741110650378,-151.0,0.00044931,120]
[355406505,1741110650387,-190.682304,0.00044931,120]
[355406506,1741110650396,-643.21,0.00044931,120]
[355406507,1741110650405,-300.89,0.00044931,120]
[355406508,1741110650414,-151.0,0.00044931,120]
[355406509,1741110650423,-500.0,0.00044931,120]
[355406510,1741110650432,-151.0,0.00044931,120]
[355406511,1741110650441,-535.46,0.00044931,120]
[355406512,1741110650450,-500.0,0.00044931,120]
[355406513,1741110650459,-500.0,0.00044931,120]
[355406514,1741110650469,-500.0,0.00044931,120]
[355406515,1741110650478,-500.0,0.00044931,120]
[355406516,1741110650489,-500.0,0.00044931,120]
[355406517,1741110650498,-500.0,0.00044931,120]
[355406518,1741110650507,-699.16,0.00044931,120]
[355406519,1741110650516,-500.0,0.00044931,120]
[355406520,1741110650526,-2001.54,0.00044931,120]
[355406521,1741110650535,-500.0,0.00044931,120]
[355406522,1741110650544,-1000.0,0.00044931,120]
[355406523,1741110650553,-500.0,0.00044931,120]
[355406524,1741110650563,-500.0,0.00044931,120]
[355406525,1741110650572,-500.0,0.00044931,120]
[355406526,1741110650581,-500.0,0.00044931,120]
[355406527,1741110650591,-1777.31,0.00044931,6]
[355406528,1741110650600,-1244.17,0.00044931,120]
[355406529,1741110650609,-500.0,0.00044931,120]
[355406530,1741110650619,-500.0,0.00044931,120]
[355406531,1741110650628,-500.0,0.00044931,120]
[355406532,1741110650637,-870.17,0.00044931,120]
[355406533,1741110650647,-500.0,0.00044931,120]
[355406534,1741110650657,-500.0,0.00044931,120]
[355406535,1741110650666,-774.02,0.00044931,120]
[355406536,1741110650675,-812.48,0.00044931,120]
[355406537,1741110650685,-500.0,0.00044931,120]
[355406538,1741110650695,-500.0,0.00044931,120]
[355406539,1741110650704,-758.2,0.00044931,120]
[355406540,1741110650717,-500.0,0.00044931,120]
[355406541,1741110650726,-500.0,0.00044931,120]
[355406542,1741110650735,-1762.09,0.00044931,120]
[355406543,1741110650744,-1040.5,0.00044931,120]
[355406544,1741110650755,-1617.9,0.00044931,120]
[355406545,1741110650765,-532.7,0.00044931,120]
[355406546,1741110650774,-500.0,0.00044931,120]
[355406547,1741110650784,-31131.63,0.00044931,7]
[355406548,1741110650793,-500.0,0.00044931,120]
[355406549,1741110650803,-500.0,0.00044931,120]
[355406550,1741110650812,-720.46,0.00044931,120]
[355406551,1741110650821,-500.0,0.00044931,120]
[355406552,1741110650830,-500.0,0.00044931,120]
[355406553,1741110650839,-500.0,0.00044931,120]
[355406554,1741110650848,-1306.64,0.00044931,30]
[355406555,1741110650858,-500.0,0.00044931,2]
[355406556,1741110650867,-500.0,0.00044931,120]
[355406557,1741110650876,-155.07991926,0.00044959,120]
[355406558,1741110650885,-846.03835412,0.00045,20]
[355406559,1741110650894,-500.0,0.00045,15]
[355406560,1741110650903,-2000.0,0.00045,6]
[355406561,1741110650913,-151.0,0.00045,120]
[355406562,1741110650922,-151.0,0.00045,120]
[355406563,1741110650931,-20794.58,0.00045,5]
[355406564,1741110650941,-2161.2044821,0.00045,60]
[355406565,1741110650950,-151.0,0.00045,13]
[355406566,1741110650959,-575.45,0.00045,120]
[355406567,1741110650968,-1136.64054549,0.00045021,92]
[355406568,1741110650977,-1136.64054549,0.00045121,97]
[355406569,1741110650987,-151.0,0.000452,26]
[355406570,1741110650996,-266.35,0.000452,30]
[355406571,1741110651005,-1232.35,0.000452,30]
[355406572,1741110651014,-169.43,0.000452,30]
[355406573,1741110651023,-150.0,0.00045205,2]
[355406574,1741110651033,-643.21,0.00045205,120]
[355406575,1741110651042,-500.0,0.00045205,120]
[355406576,1741110651051,-151.0,0.00045205,120]
[355406577,1741110651060,-584.071771,0.00045205,120]
[355406578,1741110651079,-584.071771,0.00045205,120]
[355406579,1741110651088,-1136.64054549,0.00045221,96]
[355406580,1741110651098,-500.0,0.00045233,30]
[355406581,1741110651107,-500.0,0.00045285,30]
[355406582,1741110651117,-572.02,0.000453,30]
[355406583,1741110651126,-13837.01,0.000453,30]
[355406584,1741110651135,-1232.35,0.000453,30]
[355406585,1741110651145,-476.116251,0.000453,120]
[355406586,1741110651154,-476.116251,0.000453,120]
[355406587,1741110651163,-500.0,0.0004531,30]
[355406588,1741110651172,-1136.64054549,0.00045321,92]
[355406589,1741110651182,-151.13434567,0.00045321,120]
[355406590,1741110651191,-151.0,0.000454,24]
[355406591,1741110651201,-637.35,0.000454,30]
[355406592,1741110651210,-1136.64054549,0.00045421,99]
[355406593,1741110651219,-500.0,0.00045433,30]
[355406594,1741110651228,-150.0,0.00045479,2]
[355406595,1741110651237,-151.0,0.00045479,30]
[355406596,1741110651246,-643.21,0.00045479,120]
[355406597,1741110651256,-500.0,0.00045479,120]
[355406598,1741110651265,-535.46,0.00045479,120]
[355406599,1741110651275,-500.0,0.00045479,120]
[355406600,1741110651285,-500.0,0.00045479,120]
[355406601,1741110651294,-500.0,0.00045479,120]
[355406602,1741110651303,-500.0,0.00045479,120]
[355406603,1741110651313,-699.16,0.00045479,120]
[355406604,1741110651322,-500.0,0.00045479,120]
[355406605,1741110651331,-2001.54,0.00045479,120]
[355406606,1741110651340,-500.0,0.00045479,120]
[355406607,1741110651350,-1000.0,0.00045479,120]
[355406608,1741110651359,-500.0,0.00045479,120]
[355406609,1741110651369,-500.0,0.00045479,120]
[355406610,1741110651378,-500.0,0.00045479,120]
[355406611,1741110651388,-500.0,0.00045479,120]
[355406612,1741110651397,-1777.31,0.00045479,6]
[355406613,1741110651406,-1244.17,0.00045479,120]
[355406614,1741110651415,-500.0,0.00045479,120]
[355406615,1741110651424,-500.0,0.00045479,120]
[355406616,1741110651433,-500.0,0.00045479,120]
[355406617,1741110651443,-870.17,0.00045479,120]
[355406618,1741110651452,-500.0,0.00045479,120]
[355406619,1741110651461,-500.0,0.00045479,120]
[355406620,1741110651470,-774.02,0.00045479,120]
[355406621,1741110651480,-812.48,0.00045479,120]
[355406622,1741110651491,-500.0,0.00045479,120]
[355406623,1741110651501,-500.0,0.00045479,120]
[355406624,1741110651510,-758.2,0.00045479,120]
[355406625,1741110651519,-500.0,0.00045479,120]
[355406626,1741110651528,-500.0,0.00045479,120]
[355406627,1741110651538,-1762.09,0.00045479,120]
[355406628,1741110651547,-1040.5,0.00045479,120]
[355406629,1741110651556,-1617.9,0.00045479,120]
[355406630,1741110651565,-532.7,0.00045479,120]
[355406631,1741110651575,-500.0,0.00045479,120]
[355406632,1741110651697,-31131.63,0.00045479,7]
[355406633,1741110651709,-500.0,0.00045479,120]
[355406634,1741110651720,-500.0,0.00045479,120]
[355406635,1741110651729,-720.46,0.00045479,120]
[355406636,1741110651741,-500.0,0.00045479,120]
[355406637,1741110651751,-500.0,0.00045479,120]
[355406638,1741110651760,-500.0,0.00045479,120]
[355406639,1741110651769,-1306.64,0.00045479,30]
[355406640,1741110651778,-519.69,0.00045479,2]
[355406641,1741110651789,-500.0,0.00045479,120]
[355406642,1741110651798,-1136.64054549,0.00045521,91]
[355406643,1741110651808,-230.13744191,0.00045534,120]
[355406644,1741110651818,-155.07991926,0.00045534,120]
[355406645,1741110651828,-160.04581396,0.00045534,120]
[355406646,1741110651838,-151.0,0.000456,23]
[355406647,1741110651847,-1136.64054549,0.00045621,92]
[355406648,1741110651856,-1136.64054549,0.00045721,100]
[355406649,1741110651865,-150.0,0.00045753,2]
[355406650,1741110651875,-151.0,0.00045753,120]
[355406651,1741110651884,-317.449408,0.00045753,2]
[355406652,1741110651893,-317.449408,0.00045753,2]
[355406653,1741110651903,-156.096007,0.00045753,120]
[355406654,1741110651912,-156.096007,0.00045753,120]
[355406655,1741110651922,-192.192086,0.00045753,120]
[355406656,1741110651931,-192.192086,0.00045753,120]
[355406657,1741110651941,-151.0,0.00045753,120]
[355406658,1741110651950,-643.21,0.00045753,120]
[355406659,1741110651960,-500.0,0.00045753,120]
[355406660,1741110651969,-151.0,0.000458,26]
[355406661,1741110651978,-150.0,0.000458,10]
[355406662,1741110651989,-317.69294133,0.000458,10]
[355406663,1741110651998,-1136.64054549,0.00045821,99]
[355406664,1741110652007,-151.13434567,0.00045842,120]
[355406665,1741110652017,-22232.82667168,0.00045881,90]
[355406666,1741110652026,-151.0,0.00045881,120]
[355406667,1741110652036,-476.116251,0.00045881,120]
[355406668,1741110652046,-476.116251,0.00045881,120]
[355406669,1741110652056,-584.071771,0.00045881,120]
[355406670,1741110652065,-584.071771,0.00045881,120]
[355406671,1741110652075,-1136.64054549,0.00045921,96]
[355406672,1741110652085,-1138.81286558,0.00045953,120]
[355406673,1741110652094,-253.5,0.00046,2]
[355406674,1741110652104,-1472.43745443,0.00046,120]
[355406675,1741110652114,-6000.0,0.00046,60]
[355406676,1741110652123,-500.0,0.00046,120]
[355406677,1741110652133,-1136.64054549,0.00046021,91]
[355406678,1741110652142,-150.0,0.00046027,2]
[355406679,1741110652151,-151.0,0.00046027,120]
[355406680,1741110652160,-154.462267,0.00046027,120]
[355406681,1741110652169,-441.735743,0.00046027,14]
[355406682,1741110652178,-441.735743,0.00046027,14]
[355406683,1741110652187,-151.0,0.00046027,120]
[355406684,1741110652196,-151.0,0.00046027,120]
[355406685,1741110652205,-207.51728,0.00046027,120]
[355406686,1741110652214,-207.51728,0.00046027,120]
[355406687,1741110652223,-643.21,0.00046027,120]